Cogmind - Beta 14 @@@ ROGUE MODE // 2024.08.28 @ 11:12:33 Player: Dosh Result: Self-destructed Performance ------------- Evolutions (5) 2500 Regions Visited (21) 4200 Robots Destroyed (253) 1265 Value Destroyed (11695) 11695 Prototype IDs (21) 420 Alien Tech Used (0) 0 Bonus (7852) 7852 TOTAL SCORE: 27932 Bonus ------- High Alert Combat Kills 745 Follower Combat Kills 4654 Entered Garrisons 1400 Used RIF Installer 3500 Friendly Fire -2447 Cogmind --------- Core Integrity 822/1000 Matter 237/300 Energy 540/540 System Corruption 7% Temperature Cool (0) Movement Treading (240) Ox1 Location -1/Command Parts ------- > --- POWER (2) -------- Neutrino Core Reinforced Antimatter Reactor > --- PROPULSION (4) --- Heavy Treads Heavy Treads > --- UTILITY (9) ------ Experimental Cooling System (fused) Cargo Storage Unit Advanced Transmission Jammer (fused) Layered Medium Armor Plating Remote Force Field Relay Coupler [NC] (20) Relay Coupler [Swarmer] (45) Relay Coupler [Sentry] (19) > --- WEAPON (2) ------- Heavy Phase Cannon (fused) Improved Remote Datajack > --- INVENTORY (30) --- Neutrino Core Neutrino Core Improved Heavy Treads Experimental Cooling System Experimental Coolant Injector Huge Storage Unit Quantum Capacitor Layered Medium Armor Plating Centrium Light Armor Plating Experimental Force Field Experimental Force Field Authchip [R/NC] Relay Coupler [Swarmer] (49) Relay Coupler [Swarmer] (41) Relay Coupler [Grunt] (42) Relay Coupler [Grunt] (30) Relay Coupler [Grunt] (37) Relay Coupler [Demolisher] (26) Relay Coupler [Specialist] (32) Relay Coupler [Hunter] (26) Relay Coupler [Hunter] (25) Phase Cannon Light Antimatter Cannon Light Antimatter Cannon Missile Launcher Improved Remote Datajack Power Maul Peak State ------------ > --- POWER ------------ Neutrino Core Antimatter Reactor > --- PROPULSION ------- Improved Heavy Treads Improved Heavy Treads > --- UTILITY ---------- Experimental Cooling System Huge Storage Unit Advanced Transmission Jammer Improved Medium Armor Plating Centrium Light Armor Plating Hacking Suite Relay Coupler [NC] Relay Coupler [Grunt] Relay Coupler [Sentry] > --- WEAPON ----------- Heavy Phase Cannon Improved Remote Datajack > --- INVENTORY -------- Neutrino Core Improved Heavy Treads Experimental Cooling System Experimental Coolant Injector Cargo Storage Unit Experimental Force Field Experimental Force Field Authchip [R/NC] Relay Coupler [NC] Relay Coupler [Swarmer] Relay Coupler [Grunt] Relay Coupler [Grunt] Relay Coupler [Sentry] Relay Coupler [Sentry] Relay Coupler [Demolisher] Relay Coupler [Specialist] Relay Coupler [Hunter] Relay Coupler [Behemoth] Light Antimatter Cannon Light Antimatter Cannon Missile Launcher Improved Remote Datajack Power Maul [Rating: 106] Favorites ----------- Power Antimatter Reactor Engine Ion Engine Power Core Micro Nuclear Core Reactor Antimatter Reactor Propulsion Armored Treads Treads Armored Treads Utility Hacking Suite Device Advanced Transmission Jammer Storage High-capacity Storage Unit Processor Improved Targeting Computer Hackware Hacking Suite Protection Improved Medium Armor Plating Weapon Enhanced Autogun Energy Gun Spread Laser Energy Cannon Heavy Plasma Cannon Ballistic Gun Enhanced Autogun Ballistic Cannon Light Cannon Launcher Missile Launcher Special Weapon Improved Remote Datajack Impact Weapon Power Maul Slashing Weapon Falx Special Melee Weapon Improved Datajack Build | -11 -10 -10 -9 -9 -9 -8 -8 -8 -8 -7 -7 -7 -7 -6 -6 -5 -5 -5 -5 -5 -1 ------- Run | Yrd Mat Min Mat Sto Gar Mat Gar Mat Gar Fac Was Fac Gar Fac Gar Fac Gar Fac Gar Fac Com Slots Evolved 10 | . . . 2 . . 2 . . . 2 . . . 2 . 2 . . . . . Power 1 | . . . . . . . . . . . . . . 1 . . . . . . . Propulsion 2 | . . . 1 . . . . . . 1 . . . . . . . . . . . Utility 7 | . . . 1 . . 2 . . . 1 . . . 1 . 2 . . . . . Weapon . | . . . . . . . . . . . . . . . . . . . . . . Parts Attached 311 | 5 13 . 10 26 16 22 25 21 23 15 14 5 22 14 10 12 31 6 12 9 . Power 21 | 1 2 . 1 1 1 2 2 . 1 1 3 . 1 1 . 1 1 . 2 . . Engine 11 | 1 2 . 1 1 1 1 1 . . 1 1 . . . . 1 . . . . . Core 6 | . . . . . . 1 1 . 1 . 1 . . . . . 1 . 1 . . Reactor 4 | . . . . . . . . . . . 1 . 1 1 . . . . 1 . . Propulsion 44 | 2 2 . 6 11 3 3 . 4 1 2 2 1 1 . . . 3 . 1 2 . Treads 44 | 2 2 . 6 11 3 3 . 4 1 2 2 1 1 . . . 3 . 1 2 . Leg . | . . . . . . . . . . . . . . . . . . . . . . Wheel . | . . . . . . . . . . . . . . . . . . . . . . Hover . | . . . . . . . . . . . . . . . . . . . . . . Flight . | . . . . . . . . . . . . . . . . . . . . . . Utility 112 | . 4 . 1 1 5 9 5 6 4 6 4 1 9 7 8 6 19 4 8 5 . Device 24 | . 1 . 1 1 1 2 1 . . 1 2 . 1 1 1 1 9 . . 1 . Storage 3 | . 1 . . . . . . . . . . 1 . . . . . . 1 . . Processor 6 | . 2 . . . 1 1 . . . . . . 1 . 1 . . . . . . Hackware 48 | . . . . . 2 2 2 1 3 3 1 . 3 6 3 2 7 4 6 3 . Protection 31 | . . . . . 1 4 2 5 1 2 1 . 4 . 3 3 3 . 1 1 . Artifact . | . . . . . . . . . . . . . . . . . . . . . . Weapon 134 | 2 5 . 2 13 7 8 18 11 17 6 5 3 11 6 2 5 8 2 1 2 . Energy Gun 26 | 2 4 . 1 9 5 . 5 . . . . . . . . . . . . . . Energy Cannon 9 | . . . . 1 . . . . . . . . . . 1 2 3 1 1 . . Ballistic Gun 40 | . . . 1 . . 6 7 6 6 4 2 . 4 4 . . . . . . . Ballistic Cannon 4 | . 1 . . . . . . . . . . . . . . . 2 . . 1 . Launcher 10 | . . . . 1 . . 2 1 1 . 1 . 3 . . 1 . . . . . Special Weapon 27 | . . . . 2 2 . . 2 6 2 1 2 2 2 . 2 2 1 . 1 . Impact Weapon 11 | . . . . . . . . 2 4 . . 1 2 . 1 . 1 . . . . Slashing Weapon 1 | . . . . . . . . . . . 1 . . . . . . . . . . Piercing Weapon . | . . . . . . . . . . . . . . . . . . . . . . Special Melee Weapon 6 | . . . . . . 2 4 . . . . . . . . . . . . . . Unidentified Prototypes 13 | . . . 1 3 . 1 . . . . 1 . . . 1 1 5 . . . . Parts Lost 15 | . . . . 1 3 1 1 1 1 4 . . . . . 2 1 . . . . Power 4 | . . . . 1 1 . . . 1 . . . . . . 1 . . . . . Propulsion 1 | . . . . . . . . . . 1 . . . . . . . . . . . Utility 8 | . . . . . 1 1 1 1 . 2 . . . . . 1 1 . . . . Weapon 2 | . . . . . 1 . . . . 1 . . . . . . . . . . . Highest Loss Streak 2 | . . . . 1 2 1 1 1 1 2 . . . . . 1 1 . . . . To Critical Strikes . | . . . . . . . . . . . . . . . . . . . . . . Average Slot Usage (%) 92 | . 96 100 99 99 99 94 91 99 100 97 96 84 82 81 85 81 87 88 83 79 . Engine 4 | . 14 14 11 10 11 7 3 . . 6 1 . . . . 2 2 . . . . Core 3 | . . . . . . 1 5 9 9 1 4 . . . . . 2 5 6 5 . Reactor 2 | . . . . . . . . . . . 1 7 7 13 13 8 5 5 4 5 . Treads 22 | . 27 28 32 32 33 27 27 26 27 30 27 15 15 13 13 11 11 11 11 11 . Device 7 | . 7 . 11 10 7 8 4 3 . 2 6 7 7 6 6 8 10 11 11 11 . Storage 7 | . 5 14 11 11 11 9 9 9 9 7 7 7 7 6 6 5 5 5 5 5 . Processor 2 | . 13 14 11 11 11 . . . . . . . . . . . . . . . . Hackware 14 | . . . . . 2 12 12 11 15 14 23 23 24 26 26 23 28 24 27 20 . Protection 7 | . . . . . 1 10 11 20 20 17 7 7 4 . 5 7 5 9 2 4 . Energy Gun 5 | . 25 28 21 21 20 . 2 . . . . . . . . . . . . . . Energy Cannon 1 | . . . . . . . . . . . . . . . 5 4 4 5 4 5 . Ballistic Gun 6 | . . . . . . 16 14 17 14 13 10 12 5 8 . . . . . . . Special Weapon 1 | . . . . . 1 . . . . 1 . 2 5 4 6 5 4 4 5 4 . Peak Build Rating 106 | 5 12 13 23 26 25 40 48 46 41 46 68 68 75 84 86 98 104 106 105 105 . Average Rating 52 | 3 10 11 19 22 20 35 41 41 40 43 53 67 68 79 82 89 98 104 100 100 . On Entrance 53 | . 5 11 13 22 20 25 39 46 41 40 44 68 68 72 78 83 97 103 102 105 101 Naked Turns . | . . . . . . . . . . . . . . . . . . . . . . Heaviest Build 210 | 8 51 51 56 58 59 83 76 79 76 82 75 110 113 138 133 138 135 136 197 210 . Greatest Support 150 | 40 40 40 60 63 63 63 60 63 63 83 140 140 140 140 140 140 150 150 150 150 . Greatest Overweight (x) 1 | . 1 1 1 1 . 1 1 1 1 . . . . . . . 1 . 1 1 . Average Overweight (x) . | . . 1 . . . . . . 1 . . . . . . . . . . 1 . Largest Inventory Capacity 30 | 5 20 20 20 20 20 20 20 20 20 20 20 25 25 25 25 25 25 25 30 30 . Average Capacity 21 | 5 10 20 20 20 20 20 20 20 20 20 20 22 25 25 25 25 25 25 27 30 . Most Carried 30 | 1 7 11 20 20 20 20 20 20 20 18 20 23 25 25 25 25 25 25 30 30 . Average Carried 19 | . 5 9 15 19 19 18 19 19 19 17 18 20 24 24 24 24 24 24 27 29 . Final Capacity 30 | 5 20 20 20 20 20 20 20 20 20 20 20 25 25 25 25 25 25 25 30 30 30 Final Carried 30 | 1 7 11 20 20 20 20 20 19 19 15 20 23 25 25 25 24 25 25 30 29 29 Class Distribution -------------------- 44% | Bothacker-Mutant 25% | Botlord-Mutant 16% | Mutant 7% | Scavenger-Mutant 6% | Commander-Mutant Dominant Class ---------------- Mutant | -10/Materials Mutant | -10/Mines Mutant | -9/Materials Scavenger-Mutant | -9/Storage Mutant | -9/Garrison Bothacker-Mutant | -8/Materials Bothacker-Mutant | -8/Garrison Bothacker-Mutant | -8/Materials Bothacker-Mutant | -8/Garrison Bothacker-Mutant | -7/Factory Bothacker-Mutant | -7/Waste Bothacker-Mutant | -7/Factory Botlord-Mutant | -7/Garrison Botlord-Mutant | -6/Factory Commander-Mutant | -6/Garrison Botlord-Mutant | -5/Factory Botlord-Mutant | -5/Garrison Botlord-Mutant | -5/Factory Botlord-Mutant | -5/Garrison Botlord-Mutant | -5/Factory Botlord-Mutant | -1/Command Resources | -11 -10 -10 -9 -9 -9 -8 -8 -8 -8 -7 -7 -7 -7 -6 -6 -5 -5 -5 -5 -5 -1 ----------- Run | Yrd Mat Min Mat Sto Gar Mat Gar Mat Gar Fac Was Fac Gar Fac Gar Fac Gar Fac Gar Fac Com Matter Collected 8460 | 112 343 17 96 330 229 597 770 1312 696 469 741 156 485 293 210 259 560 175 359 251 . Remotely . | . . . . . . . . . . . . . . . . . . . . . . Salvage Created 10840 | . 594 58 313 928 472 815 847 1383 583 494 1665 . 459 71 236 338 976 74 197 337 . Parts 548 | . 39 8 19 68 29 42 59 93 38 18 15 . 28 5 14 10 33 3 10 17 . Haulers Intercepted 18 | . 2 . 4 4 . 3 . 4 . . . . . . . . . . . 1 . Recyclers Shooed 10 | . 2 1 2 4 . 1 . . . . . . . . . . . . . . . Parts Field Recycled . | . . . . . . . . . . . . . . . . . . . . . . Retrieved Matter . | . . . . . . . . . . . . . . . . . . . . . . Parts Self-Destructed . | . . . . . . . . . . . . . . . . . . . . . . Prevented . | . . . . . . . . . . . . . . . . . . . . . . Kills | -11 -10 -10 -9 -9 -9 -8 -8 -8 -8 -7 -7 -7 -7 -6 -6 -5 -5 -5 -5 -5 -1 ------- Run | Yrd Mat Min Mat Sto Gar Mat Gar Mat Gar Fac Was Fac Gar Fac Gar Fac Gar Fac Gar Fac Com Combat Hostiles Destroyed 194 | . 16 3 6 24 19 11 22 20 16 9 6 . 14 2 5 8 5 1 3 4 . Melee 1 | . . . . . . . . . . . 1 . . . . . . . . . . Guns 135 | . 12 3 6 18 19 11 16 20 12 9 5 . 2 2 . . . . . . . Cannons 22 | . 4 . . . . . . . . . . . . . 5 2 4 1 3 3 . AOE 34 | . . . . 6 . . 6 . 4 . . . 12 . . 6 . . . . . Classes Destroyed 19 | . 7 1 1 1 . 1 3 1 . . 2 . . . 1 1 . . . . . Worker 6 | . 1 . . 2 . . . 2 . . . . 1 . . . . . . . . Builder 5 | . . 2 . . . . . 2 . . . . . . . 1 . . . . . Tunneler 4 | . 1 . . . . . . 2 . . . . 1 . . . . . . . . Hauler 18 | . 2 . 4 4 . 3 . 4 . . . . . . . . . . . 1 . Recycler 4 | . . . 1 1 . 1 . 1 . . . . . . . . . . . . . Operator 5 | . 2 . . 2 . . . 1 . . . . . . . . . . . . . Watcher 8 | . 2 . . 2 . 2 . 2 . . . . . . . . . . . . . Swarmer 58 | . 6 3 4 6 6 2 7 3 5 . . . 12 1 1 . 2 . . . . Saboteur 1 | . . . . . . . . . . . . . . . 1 . . . . . . Grunt 56 | . 10 . 2 7 5 2 6 4 6 6 . . 4 . . 1 . . 2 1 . Brawler 4 | . . . . . . . 1 1 . 1 . . . . . . 1 . . . . Duelist 2 | . . . . . . . . 1 . 1 . . . . . . . . . . . Protector 1 | . . . . . . . . . . . . . . . . 1 . . . . . Sentry 42 | . . . . 11 8 5 4 8 3 1 . . . . . . . 1 1 . . Specialist 8 | . . . . . . . 1 . . . . . 1 . 3 3 . . . . . Hunter 8 | . . . . . . 2 1 3 . . . . . . . 1 . . . 1 . Programmer 14 | . . . . . . . 3 . 3 . . . . 1 . 2 3 . . 2 . Compactor 6 | . . . . . . . . . . . 6 . . . . . . . . . . Thug 1 | . . . . . . . . . . . . . 1 . . . . . . . . Butcher 1 | . . . . . . . . . . . . . 1 . . . . . . . . Martyr 1 | . . . . . . . . . . . 1 . . . . . . . . . . Best Kill Streak 7 | . 4 3 4 6 6 3 4 4 7 4 1 . 6 1 1 7 2 1 2 2 . Combat Bots Only 7 | . 4 3 4 6 6 3 4 3 7 4 1 . 6 1 1 6 2 1 2 2 . Max Kills in Single Turn 5 | . 2 1 1 3 2 1 3 2 2 1 1 . 4 1 1 5 1 1 1 1 . Gunslinging 1 | . 1 . . . 1 . . 1 . . . . . . . . . . . . . Exploded 4 | . . . . 3 . . 3 . 2 . . . 3 . . 4 . . . . . Melee 1 | . . . . . . . . . . . 1 . . . . . . . . . . Uniques/NPCs Destroyed . | . . . . . . . . . . . . . . . . . . . . . . Combat | -11 -10 -10 -9 -9 -9 -8 -8 -8 -8 -7 -7 -7 -7 -6 -6 -5 -5 -5 -5 -5 -1 -------- Run | Yrd Mat Min Mat Sto Gar Mat Gar Mat Gar Fac Was Fac Gar Fac Gar Fac Gar Fac Gar Fac Com Hostile Shots Fired 946 | . 37 6 13 61 73 114 116 94 101 54 . . 59 4 32 97 37 10 29 9 . Missed 259 | . 12 . 4 22 21 19 29 24 20 17 . . 22 1 13 31 11 4 7 2 . Damage Taken 9865 | . 304 99 155 515 703 1080 1127 874 774 569 . . 598 58 329 1192 346 296 519 327 . Core 914 | . 55 47 20 37 134 96 86 62 59 . . . 109 12 19 36 16 25 63 38 . Absorbed by Shields 1333 | . . . . . 21 326 156 112 294 . . . . 15 . 37 255 117 . . . Reduced by Siege Mode 110 | . . . . . . . . . . . . . . . 40 39 19 . . 12 . Ignored by Resistances 339 | . . . . . 8 102 . 153 76 . . . . . . . . . . . . Regen/Repaired (Parts) 1070 | . 77 . . . . . . 428 . . 27 20 48 . 5 465 . . . . . Core Remaining (%) 72 | 100 . 59 . . 52 . . . 44 . . . 84 . 96 . . . . . . Volleys Fired 1042 | . 39 4 23 57 41 64 80 134 62 48 125 4 28 11 47 39 95 19 84 38 . Largest 2 | . 2 2 2 2 2 2 2 2 2 2 2 1 2 2 1 1 2 1 1 2 . Hottest 150 | . 130 130 130 130 130 50 90 50 50 50 50 5 61 50 90 90 150 90 90 150 . Shots Fired 1592 | . 79 9 46 111 81 128 146 263 103 79 152 4 40 15 50 39 102 19 84 42 . Gun 1162 | . 62 9 46 107 80 128 140 257 86 66 146 . 23 12 . . . . . . . Cannon 245 | . 17 . . . . . . . . . . . . . 34 21 86 5 57 25 . Launcher 30 | . . . . 4 . . 6 1 5 . . . 9 . . 5 . . . . . Special 155 | . . . . . 1 . . 5 12 13 6 4 8 3 16 13 16 14 27 17 . Kinetic 867 | . 17 . . . . 128 122 257 86 66 146 . 23 12 . . 7 . . 3 . Thermal 524 | . 45 9 46 107 81 . 18 . . . . . . . 34 21 79 5 57 22 . Explosive 30 | . . . . 4 . . 6 1 5 . . . 9 . . 5 . . . . . Electromagnetic 17 | . 17 . . . . . . . . . . . . . . . . . . . . Robot Hit Streak 28 | . 17 5 13 21 25 20 25 13 9 15 20 24 25 4 11 13 28 8 10 8 . Robot Miss Streak 8 | . 8 3 7 5 8 2 3 7 3 2 3 . 3 4 2 1 2 3 4 2 . Penetration Max . | . . . . . . . . . . . . . . . . . . . . . . Secondary Targets 15 | . 1 . . . 4 3 3 1 3 . . . . . . . . . . . . Max Gunslinging Chain 1 | . 1 . . . 1 1 1 1 1 . . . . . . . . . . . . Shots Hit Robots 1153 | . 61 9 40 97 62 104 83 156 60 57 179 4 24 9 29 29 73 12 39 26 . Core Hits 680 | . 72 10 45 149 82 36 38 56 28 21 25 . 41 2 8 33 22 1 6 5 . Critical Kills 6 | . . . . . . . 1 . . . . . . . . . 5 . . . . Critical Parts Destroyed 3 | . . . . . . . 1 1 1 . . . . . . . . . . . . Critical Strikes 17 | . 1 . . . . . 2 1 1 . 7 . . . . . 5 . . . . Meltdown 5 | . . . . . . . . . . . . . . . . . 5 . . . . Destroy 5 | . . . . . . . 2 1 1 . 1 . . . . . . . . . . Corrupt 1 | . 1 . . . . . . . . . . . . . . . . . . . . Sever 6 | . . . . . . . . . . . 6 . . . . . . . . . . Melee Attacks 103 | . . . . . . 6 3 1 10 . 61 1 5 . 1 . 15 . . . . Impact 33 | . . . . . . . . 1 10 . . 1 5 . 1 . 15 . . . . Slashing 61 | . . . . . . . . . . . 61 . . . . . . . . . . Piercing . | . . . . . . . . . . . . . . . . . . . . . . Sneak Attacks 63 | . . . . . . 4 . . . . 59 . . . . . . . . . . Combat Hostiles 55 | . . . . . . . . . . . 55 . . . . . . . . . . Follow-up Attacks . | . . . . . . . . . . . . . . . . . . . . . . Damage Inflicted 25895 | . 877 124 542 2015 957 1491 2102 2790 1112 837 5126 . 1928 141 509 1968 2074 76 810 416 . Guns 13797 | . 710 108 532 1510 936 1469 1460 2717 923 837 2193 . 261 141 . . . . . . . Cannons 4513 | . 147 . . . . . . . . . . . . . 509 481 2074 76 810 416 . Explosions 4464 | . . . . 442 . . 642 39 187 . . . 1667 . . 1487 . . . . . Melee 2630 | . . . . . . . . . . . 2630 . . . . . . . . . . Ramming 491 | . 20 16 10 63 21 22 . 34 2 . 303 . . . . . . . . . . Kinetic 10462 | . 147 . . . . 1469 1405 2717 923 837 2193 . 261 141 . . 272 . . 97 . Thermal 7644 | . 506 108 532 1510 936 . 55 . . . . . . . 509 481 1802 76 810 319 . Explosive 4464 | . . . . 442 . . 642 39 187 . . . 1667 . . 1487 . . . . . Electromagnetic 204 | . 204 . . . . . . . . . . . . . . . . . . . . Impact . | . . . . . . . . . . . . . . . . . . . . . . Slashing 2630 | . . . . . . . . . . . 2630 . . . . . . . . . . Piercing . | . . . . . . . . . . . . . . . . . . . . . . Highest Corruption 7 | . 2 2 . 7 7 . 2 2 4 4 4 7 7 2 2 4 5 5 5 7 . Average Corruption 3 | . 2 2 . 5 7 . 1 2 3 4 4 6 7 1 2 3 4 5 5 5 . Corruption Purged . | . . . . . . . . . . . . . . . . . . . . . . Corruption Blocked . | . . . . . . . . . . . . . . . . . . . . . . Effects 442 | . 14 12 . 29 31 . 5 46 29 . 43 28 38 9 21 9 44 13 35 36 . Message Errors 107 | . 1 . . 9 6 . 3 8 12 . 14 5 9 1 6 4 7 3 5 14 . Matter Fused 112 | . 2 2 . 8 12 . 2 14 5 . 9 9 10 3 6 1 10 3 10 6 . Heat Flow Errors 58 | . 4 5 . 5 3 . . 4 4 . 4 1 2 1 2 2 9 1 7 4 . Energy Discharges 55 | . 3 2 . 2 4 . . 9 2 . 7 8 4 2 2 1 2 1 5 1 . Parts Rejected 5 | . . . . . . . . 1 . . 2 . 1 . . . . . 1 . . Parts Fused 7 | . . . . 1 . . . 1 . . 1 . . . . 1 1 1 . 1 . Data Loss (minor) 46 | . 1 . . 2 4 . . 3 4 . 2 3 5 . 2 . 7 3 5 5 . Data Loss (major) 21 | . . 1 . . . . . . . . 2 2 4 1 . . 6 1 2 2 . Misfires 15 | . 1 1 . 1 . . . 3 . . 1 . 3 1 3 . . . . 1 . Alerts 14 | . 2 1 . 1 2 . . 1 2 . 1 . . . . . 2 . . 2 . Weapon Failures 2 | . . . . . . . . 2 . . . . . . . . . . . . . Overload Shots . | . . . . . . . . . . . . . . . . . . . . . . Overflow Damage 178 | . . . . 3 . . . . 10 . 104 . 11 . 14 3 12 3 16 2 . Projectiles 50 | . . . . . . . . . . . . . . . 14 3 12 3 16 2 . Explosions 24 | . . . . 3 . . . . 10 . . . 11 . . . . . . . . Melee 104 | . . . . . . . . . . . 104 . . . . . . . . . . Knockbacks 1 | . 1 . . . . . . . . . . . . . . . . . . . . Impact . | . . . . . . . . . . . . . . . . . . . . . . Kinetic 1 | . 1 . . . . . . . . . . . . . . . . . . . . Secondary . | . . . . . . . . . . . . . . . . . . . . . . Self-Inflicted Damage 148 | . . . . 18 . . 79 . . . . . 51 . . . . . . . . Shots 6 | . . . . 1 . . 4 . . . . . 1 . . . . . . . . Rammed 80 | . 6 2 2 8 3 5 . 6 1 . 47 . . . . . . . . . . Targets Rammed 82 | . 6 3 2 8 3 5 . 7 1 . 47 . . . . . . . . . . Kicked . | . . . . . . . . . . . . . . . . . . . . . . Crushed 2 | . . 1 . . . . . 1 . . . . . . . . . . . . . Highest Temperature 392 | . 256 247 81 234 226 312 213 286 214 90 198 267 205 143 392 200 239 183 240 230 . Average Temperature 69 | . 65 95 26 38 56 98 68 85 64 26 26 143 61 38 88 107 89 96 95 123 . Received Heat Transfer 2364 | . 126 . 60 189 202 410 292 166 261 186 . . 84 . . 204 67 27 72 18 . Effects 7 | . . . . . . 4 . 2 . . . . . . 1 . . . . . . Shutdowns 1 | . . . . . . 1 . . . . . . . . . . . . . . . Energy Bleed 4 | . . . . . . 1 . 2 . . . . . . 1 . . . . . . Interference 2 | . . . . . . 2 . . . . . . . . . . . . . . . Siege Activations 7 | . . . . . . . . . . . . . . . 3 1 2 . . 1 . Total Turns 62 | . . . . . . . . . . . . . . . 18 15 23 . . 6 . Longest Duration 16 | . . . . . . . . . . . . . . . 7 15 16 . . 6 . Robots Corrupted . | . . . . . . . . . . . . . . . . . . . . . . Combat Hostiles . | . . . . . . . . . . . . . . . . . . . . . . Parts Fried . | . . . . . . . . . . . . . . . . . . . . . . Impact Corruptions 1 | . . . . 1 . . . . . . . . . . . . . . . . . Robots Melted 6 | . . . . . . . . . . . . . . . . . 5 . . 1 . Combat Hostiles 2 | . . . . . . . . . . . . . . . . . 1 . . 1 . Parts Melted 17 | . . . . . . 1 . . . . . . . . 3 1 10 . 1 1 . Heat Transferred 9944 | . 635 130 665 1875 1156 . 74 . . . . . . . 800 676 2675 74 851 333 . Parts Sabotaged . | . . . . . . . . . . . . . . . . . . . . . . Parts Stolen . | . . . . . . . . . . . . . . . . . . . . . . Parts Stripped . | . . . . . . . . . . . . . . . . . . . . . . Power Chain Reactions . | . . . . . . . . . . . . . . . . . . . . . . Alert | -11 -10 -10 -9 -9 -9 -8 -8 -8 -8 -7 -7 -7 -7 -6 -6 -5 -5 -5 -5 -5 -1 ------- Run | Yrd Mat Min Mat Sto Gar Mat Gar Mat Gar Fac Was Fac Gar Fac Gar Fac Gar Fac Gar Fac Com Peak Influence 1289 | . 313 142 303 386 793 762 784 510 680 387 28 169 924 606 1257 662 1106 1049 1289 901 . Initial 676 | . . 67 . 21 156 386 32 382 10 357 28 . 49 485 319 659 35 580 394 676 196 Average 342 | . 157 33 74 191 513 318 410 141 335 218 6 25 677 360 952 339 647 726 890 399 . Maximum Alert Level 4 | . 1 . 1 1 3 3 3 2 2 1 . . 3 2 4 2 4 3 4 3 . Low Security (%) 45 | 100 87 100 94 46 3 27 31 71 12 38 100 100 16 6 . 34 20 . . 25 . Level 1 21 | . 12 . 5 53 18 36 15 24 63 61 . . . 52 8 25 9 . 1 36 . Level 2 15 | . . . . . 64 34 34 3 23 . . . 6 41 10 40 8 47 20 19 . Level 3 14 | . . . . . 12 1 17 . . . . . 76 . 39 . 53 52 51 18 . Level 4 3 | . . . . . . . . . . . . . . . 41 . 7 . 26 . . Level 5 . | . . . . . . . . . . . . . . . . . . . . . . High Security . | . . . . . . . . . . . . . . . . . . . . . . Max Security . | . . . . . . . . . . . . . . . . . . . . . . Squads Dispatched 49 | . 4 . 1 9 . 4 . 3 . 5 . 2 . 4 . 5 . 6 . 6 . Investigation 7 | . 2 . 1 . . . . . . 1 . 1 . . . 1 . 1 . . . Extermination 6 | . . . . . . . . . . 1 . 1 . 1 . 1 . . . 2 . Reinforcement 15 | . 2 . . 3 . 3 . 2 . 1 . . . . . 2 . 1 . 1 . Assault 2 | . . . . . . . . . . . . . . . . 1 . 1 . . . Garrison 19 | . . . . 6 . 1 . 1 . 2 . . . 3 . . . 3 . 3 . Intercept . | . . . . . . . . . . . . . . . . . . . . . . Searches Triggered . | . . . . . . . . . . . . . . . . . . . . . . Construction Impeded . | . . . . . . . . . . . . . . . . . . . . . . Haulers Reinforced 1 | . . . . . . . . . . . . . . . . 1 . . . . . Active Scanning Responses . | . . . . . . . . . . . . . . . . . . . . . . Cargo Convoy Interrupts 1 | . . . . . . . . . . . . . . . . 1 . . . . . Stealth | -11 -10 -10 -9 -9 -9 -8 -8 -8 -8 -7 -7 -7 -7 -6 -6 -5 -5 -5 -5 -5 -1 --------- Run | Yrd Mat Min Mat Sto Gar Mat Gar Mat Gar Fac Was Fac Gar Fac Gar Fac Gar Fac Gar Fac Com Distress Signals 21 | . 4 . . 3 . 2 . 3 . 3 . . . . . 2 . 3 . 1 . Communications Jammed 208 | . . . . . . . . . . . . . . . . 181 . 11 . 16 . Distress Signals 208 | . . . . . . . . . . . . . . . . 181 . 11 . 16 . Times Spotted 440 | . 29 3 17 30 19 34 25 44 30 21 4 2 30 13 13 26 36 18 29 17 . Peak Tracking Total 11 | . 4 2 6 6 4 5 5 3 6 5 2 2 10 3 2 11 10 5 3 2 . Tactical Retreats 14 | . 2 . 1 4 3 2 . . 2 . . . . . . . . . . . . Traps | -11 -10 -10 -9 -9 -9 -8 -8 -8 -8 -7 -7 -7 -7 -6 -6 -5 -5 -5 -5 -5 -1 ------- Run | Yrd Mat Min Mat Sto Gar Mat Gar Mat Gar Fac Was Fac Gar Fac Gar Fac Gar Fac Gar Fac Com Traps Triggered 28 | . 2 1 1 6 3 . 2 . 4 2 . 3 1 1 2 . . . . . . Indirectly . | . . . . . . . . . . . . . . . . . . . . . . Trap Hack Attempts 8 | . . . . . . . 8 . . . . . . . . . . . . . . Triggered . | . . . . . . . . . . . . . . . . . . . . . . Disarmed 1 | . . . . . . . 1 . . . . . . . . . . . . . . Reprogrammed . | . . . . . . . . . . . . . . . . . . . . . . Reused . | . . . . . . . . . . . . . . . . . . . . . . Traps Extracted . | . . . . . . . . . . . . . . . . . . . . . . Installed . | . . . . . . . . . . . . . . . . . . . . . . Triggered . | . . . . . . . . . . . . . . . . . . . . . . Machines | -11 -10 -10 -9 -9 -9 -8 -8 -8 -8 -7 -7 -7 -7 -6 -6 -5 -5 -5 -5 -5 -1 ---------- Run | Yrd Mat Min Mat Sto Gar Mat Gar Mat Gar Fac Was Fac Gar Fac Gar Fac Gar Fac Gar Fac Com Machines Disabled 33 | . . . . 2 3 . 4 2 3 . . . 3 . 3 2 5 . 5 1 . Max in Single Turn 1 | . . . . 1 1 . 1 1 1 . . . 1 . 1 . 1 . 1 . . Garrison Relay 23 | . . . . . 3 . 1 . 3 . . . 3 . 3 . 6 . 4 . . Machines Repaired . | . . . . . . . . . . . . . . . . . . . . . . Machines Dismantled 4 | . . . . 2 2 . . . . . . . . . . . . . . . . Machines Sabotaged . | . . . . . . . . . . . . . . . . . . . . . . Overloaded Fab Kills . | . . . . . . . . . . . . . . . . . . . . . . Hacking | -11 -10 -10 -9 -9 -9 -8 -8 -8 -8 -7 -7 -7 -7 -6 -6 -5 -5 -5 -5 -5 -1 --------- Run | Yrd Mat Min Mat Sto Gar Mat Gar Mat Gar Fac Was Fac Gar Fac Gar Fac Gar Fac Gar Fac Com Machines Accessed 87 | . 9 1 10 9 2 7 2 12 2 1 . 6 2 7 1 5 2 1 3 5 . Terminals 58 | . 6 . 6 8 2 5 2 7 2 . . 2 2 4 1 2 2 . 3 4 . Fabricators 6 | . . . . . . . . . . 1 . 1 . 2 . 2 . . . . . Repair Stations 6 | . 1 . 2 . . . . 2 . . . 1 . . . . . . . . . Recycling Units 3 | . 2 . . . . . . 1 . . . . . . . . . . . . . Scanalyzers 5 | . . . 2 . . 1 . 1 . . . 1 . . . . . . . . . Garrison Access 8 | . . . . 1 . 1 . 1 . . . 1 . 1 . 1 . 1 . 1 . Total Hacks 235 | . 23 1 28 22 4 19 4 38 2 3 . 13 7 28 2 15 5 3 9 9 . Successful 143 | . 18 1 15 13 1 8 1 31 1 . . 9 1 21 1 10 1 3 4 4 . Failed 90 | . 4 . 12 9 3 11 3 7 1 3 . 4 6 7 1 5 4 . 5 5 . Catastrophic 20 | . 2 . 2 1 2 4 . . 1 . . 1 . . . 3 1 . 1 2 . Database Lockouts 2 | . 1 . 1 . . . . . . . . . . . . . . . . . . Manual 97 | . 13 . 15 10 . 13 1 23 . . . 3 1 6 . 8 . 1 2 1 . Terminals 156 | . 15 . 17 21 4 16 4 24 2 . . 4 7 12 2 7 5 . 9 7 . Fabricators 23 | . . . . . . . . . . 3 . 1 . 14 . 5 . . . . . Repair Stations 19 | . 6 . 6 . . . . 6 . . . 1 . . . . . . . . . Recycling Units 7 | . 2 . . . . . . 5 . . . . . . . . . . . . . Scanalyzers 12 | . . . 5 . . 1 . 2 . . . 4 . . . . . . . . . Garrison Access 17 | . . . . 1 . 2 . 1 . . . 3 . 2 . 3 . 3 . 2 . Terminal Hacks 45 | . 4 1 3 8 1 5 1 7 1 . . 1 1 4 1 1 1 . 3 2 . Robot Schematic 2 | . 1 . . . . . . . . . . . . 1 . . . . . . . Robot Analysis 2 | . . . 2 . . . . . . . . . . . . . . . . . . Prototype ID Bank 4 | . 1 . . 1 . 1 . 1 . . . . . . . . . . . . . Open Door 5 | . . 1 . 3 . . . . . . . . . . . . . . 1 . . Terminal Index 1 | . . . . . . . . 1 . . . . . . . . . . . . . Garrison Index 1 | . . . . . . . . 1 . . . . . . . . . . . . . Alert Level 2 | . . . . 2 . . . . . . . . . . . . . . . . . Unreport Threat 12 | . . . 1 2 . 2 . 2 . . . 1 . 2 . 1 . . . 1 . Locate Traps 4 | . 1 . . . . 1 . 1 . . . . . 1 . . . . . . . Hauler Manifests 2 | . . . . . . 1 . 1 . . . . . . . . . . . . . Zone Layout 2 | . 1 . . . . . . . . . . . . . . . . . . 1 . Garrison Registry 5 | . . . . . 1 . 1 . 1 . . . 1 . 1 . . . . . . Patrol Navigation 1 | . . . . . . . . . . . . . . . . . . . 1 . . Security Stations 2 | . . . . . . . . . . . . . . . . . 1 . 1 . . Fabricator Hacks 18 | . . . . . . . . . . . . 1 . 12 . 5 . . . . . Network Status 3 | . . . . . . . . . . . . 1 . 1 . 1 . . . . . Load Schematic 7 | . . . . . . . . . . . . . . 6 . 1 . . . . . Build 8 | . . . . . . . . . . . . . . 5 . 3 . . . . . Repair Station Hacks 14 | . 6 . 2 . . . . 6 . . . . . . . . . . . . . Scan Component 8 | . 3 . 2 . . . . 3 . . . . . . . . . . . . . Repair 6 | . 3 . . . . . . 3 . . . . . . . . . . . . . Recycling Unit Hacks 1 | . . . . . . . . 1 . . . . . . . . . . . . . Retrieve Components 1 | . . . . . . . . 1 . . . . . . . . . . . . . Scanalyzer 10 | . . . 4 . . 1 . 2 . . . 3 . . . . . . . . . Insert Component 6 | . . . 2 . . 1 . 1 . . . 2 . . . . . . . . . Analyze 4 | . . . 2 . . . . 1 . . . 1 . . . . . . . . . Garrison Access Hacks 13 | . . . . 1 . 1 . 1 . . . 2 . 2 . 2 . 2 . 2 . Unlock Access 8 | . . . . 1 . 1 . 1 . . . 1 . 1 . 1 . 1 . 1 . Coupler Status 5 | . . . . . . . . . . . . 1 . 1 . 1 . 1 . 1 . Unauthorized Hacks 42 | . 8 . 6 4 . 1 . 14 . . . 2 . 3 . 2 . 1 1 . . Terminals 36 | . 6 . 6 4 . 1 . 13 . . . 1 . 2 . 2 . . 1 . . Track 2 | . . . . . . . . 2 . . . . . . . . . . . . . Assimilate 1 | . . . . . . 1 . . . . . . . . . . . . . . . Botnet 10 | . 1 . 1 2 . . . 3 . . . . . 1 . 1 . . 1 . . Disrupt 1 | . . . . . . . . 1 . . . . . . . . . . . . . Operators 4 | . . . . . . . . 1 . . . 1 . 1 . 1 . . . . . Skim 18 | . 5 . 5 2 . . . 6 . . . . . . . . . . . . . Fabricators 1 | . . . . . . . . . . . . . . 1 . . . . . . . Prioritize 1 | . . . . . . . . . . . . . . 1 . . . . . . . Repair Stations . | . . . . . . . . . . . . . . . . . . . . . . Recycling Units 3 | . 2 . . . . . . 1 . . . . . . . . . . . . . Reject 1 | . . . . . . . . 1 . . . . . . . . . . . . . Tunnel 2 | . 2 . . . . . . . . . . . . . . . . . . . . Scanalyzers . | . . . . . . . . . . . . . . . . . . . . . . Garrison Access 2 | . . . . . . . . . . . . 1 . . . . . 1 . . . Eject 2 | . . . . . . . . . . . . 1 . . . . . 1 . . . Data Cores Recovered 2 | . . . 1 . . . . . . . . . . . . . . . . 1 . Used . | . . . . . . . . . . . . . . . . . . . . . . Hacking Detections 72 | . 7 . 10 6 2 7 2 9 2 1 . 4 2 5 1 4 2 1 3 4 . Full Trace Events 5 | . . . 1 1 . . . . . . . . 1 . . 1 1 . . . . Feedback Events . | . . . . . . . . . . . . . . . . . . . . . . Feedback Blocked . | . . . . . . . . . . . . . . . . . . . . . . Robot Schematics Acquired 2 | . 1 . . . . . . . . . . . . 1 . . . . . . . Robots Built 11 | . . . . . . . . . . . . . . 10 . 1 . . . . . Authchips 6 | . . . . . . . . . . . . . . 5 . 1 . . . . . Time 375 | . . . . . . . . . . . . . . 335 . 40 . . . . . Total Robot Build Rating 41 | . . . . . . . . . . . . . . 40 . 1 . . . . . Part Schematics Acquired 3 | . . . 1 . . . . 1 . . . 1 . . . . . . . . . Parts Built 2 | . . . . . . . . . . . . . . . . 2 . . . . . Authchips . | . . . . . . . . . . . . . . . . . . . . . . Time 192 | . . . . . . . . . . . . . . . . 192 . . . . . Total Part Build Rating 12 | . . . . . . . . . . . . . . . . 12 . . . . . Parts Repaired 6 | . 3 . . . . . . 3 . . . . . . . . . . . . . Time 198 | . 90 . . . . . . 108 . . . . . . . . . . . . . Parts Recycled . | . . . . . . . . . . . . . . . . . . . . . . Recycled Matter . | . . . . . . . . . . . . . . . . . . . . . . Retrieved Matter . | . . . . . . . . . . . . . . . . . . . . . . Retrieved Components 10 | . . . . . . . . 10 . . . . . . . . . . . . . Parts Scanalyzed 4 | . . . 1 . . . . 1 . . . 2 . . . . . . . . . Part Schematics Acquired 3 | . . . 1 . . . . 1 . . . 1 . . . . . . . . . Parts Damaged 1 | . . . . . . . . . . . . 1 . . . . . . . . . Bothacking | -11 -10 -10 -9 -9 -9 -8 -8 -8 -8 -7 -7 -7 -7 -6 -6 -5 -5 -5 -5 -5 -1 ------------ Run | Yrd Mat Min Mat Sto Gar Mat Gar Mat Gar Fac Was Fac Gar Fac Gar Fac Gar Fac Gar Fac Com Used RIF Installer 7 | . . . . . 1 . 1 . 1 . . . 1 . 1 . 1 . 1 . . Coupler Efficiency 1 | . . . . . . . . . . . . . 1 . . . . . . . . Command Fork 2 | . . . . . . . 1 . . . . . . . . . 1 . . . . Threat Obfuscator 1 | . . . . . . . . . . . . . . . . . . . 1 . . Robot Detection 1 | . . . . . . . . . 1 . . . . . . . . . . . . Patrol Navigation 1 | . . . . . . . . . . . . . . . 1 . . . . . . Robots Hacked 86 | . . . . . . 4 3 2 8 6 5 2 7 2 2 6 13 7 12 7 . Non-combat 16 | . . . . . . 2 . 2 . 1 . 2 . 1 . 4 . 2 . 2 . Combat 70 | . . . . . . 2 3 . 8 5 5 . 7 1 2 2 13 5 12 5 . Robot Hacks Applied 104 | . . . . . . 5 3 4 9 9 5 3 7 3 2 6 13 10 12 13 . drop_inventory 1 | . . . . . . . . . . . . 1 . . . . . . . . . purge_threat 14 | . . . . . . 1 . 2 . 2 . . . . . . . 3 . 6 . find_terminals 1 | . . . . . . . . . . 1 . . . . . . . . . . . map_route 1 | . . . . . . . . . . . . . . . . . . 1 . . . ignore_targets 5 | . . . . . . . . . . . 5 . . . . . . . . . . find_garrison 2 | . . . . . . . . . . . . . . 1 . . . . . 1 . spike_heat 1 | . . . . . . . . . . . . . . . . . . . . 1 . amplify_resonance 8 | . . . . . . . . . 1 1 . . 3 . . 1 2 . . . . wipe_record 2 | . . . . . . . 1 . . . . . . . . . 1 . . . . disable_weapons 2 | . . . . . . . . . . . . . . . . . . 1 1 . . overwrite_iff 21 | . . . . . . . 1 . 7 4 . . 1 . . 1 3 . 4 . . formatsys_low 12 | . . . . . . 2 . 2 . 1 . 2 . 1 . 1 . 1 . 2 . formatsys_high 34 | . . . . . . 2 1 . 1 . . . 3 1 2 3 7 4 7 3 . Relay Couplers Released 94 | . . . . . 10 . 4 . 11 . . 3 12 . 12 . 25 4 13 . . Ejected 7 | . . . . . . . . . . . . 3 . . . . . 4 . . . Machine Destruction 87 | . . . . . 10 . 4 . 11 . . . 12 . 12 . 25 . 13 . . Attached 39 | . . . . . 1 2 1 1 3 3 1 . 3 . 3 1 7 4 6 3 . Fabnet Peak Effective % . | . . . . . . . . . . . . . . . . . . . . . . Robots Rewired 15 | . . . . . . . . . . . . . 2 . 8 . . . 5 . . Allies Hacked 7 | . . . . . . . . . . . . 1 . . 3 2 1 . . . . Hacks Repelled 1 | . . . . . . . . . . . . . . 1 . . . . . . . Allies | -11 -10 -10 -9 -9 -9 -8 -8 -8 -8 -7 -7 -7 -7 -6 -6 -5 -5 -5 -5 -5 -1 -------- Run | Yrd Mat Min Mat Sto Gar Mat Gar Mat Gar Fac Was Fac Gar Fac Gar Fac Gar Fac Gar Fac Com Total Allies 145 | . . 3 . . . 5 2 2 8 6 19 4 8 15 12 9 16 7 23 6 . Largest Group 32 | . . 3 3 1 . 3 3 2 3 3 19 18 10 21 30 32 10 11 10 12 . Highest-Rated Group 1132 | . . 75 75 13 . 71 34 20 36 56 475 441 253 632 1097 1132 495 564 515 542 . Highest-Rated Ally 148 | . . 31 31 13 . 29 15 10 16 24 36 36 43 37 99 115 115 99 148 144 . Total Orders 46 | . . . . . . . 13 2 1 . . 1 5 2 5 3 2 . 9 3 . STAY 16 | . . . . . . . 6 1 1 . . . 2 . 2 . . . 3 1 . ROAM 4 | . . . . . . . . . . . . . . . . . . . 4 . . FOLLOW 15 | . . . . . . . 7 . . . . . 2 . 2 . . . 2 2 . AID 5 | . . . . . . . . . . . . . . 1 1 3 . . . . . DROP 4 | . . . . . . . . 1 . . . 1 . 1 . . 1 . . . . PICKUP 2 | . . . . . . . . . . . . . 1 . . . 1 . . . . Ally Attacks 910 | . . . 25 . . 67 3 . 26 12 . 76 51 79 46 54 66 118 146 141 . Total Damage 19799 | . . . 418 . . 809 46 . 351 149 . 957 1082 1373 1208 1772 2354 2963 3704 2613 . Kills 155 | . . . 12 . . 8 1 . 6 1 . 11 9 14 11 9 14 15 21 23 . Allies Corrupted 2 | . . . . . . . . . . . . 1 . . . . . . 1 . . Allies Melted . | . . . . . . . . . . . . . . . . . . . . . . Intel | -11 -10 -10 -9 -9 -9 -8 -8 -8 -8 -7 -7 -7 -7 -6 -6 -5 -5 -5 -5 -5 -1 ------- Run | Yrd Mat Min Mat Sto Gar Mat Gar Mat Gar Fac Was Fac Gar Fac Gar Fac Gar Fac Gar Fac Com Robot Analysis Total 2 | . . . 2 . . . . . . . . . . . . . . . . . . Derelict Logs Recovered 1 | . . 1 . . . . . . . . . . . . . . . . . . . Drone Launches . | . . . . . . . . . . . . . . . . . . . . . . Drone Recoveries . | . . . . . . . . . . . . . . . . . . . . . . Exploration | -11 -10 -10 -9 -9 -9 -8 -8 -8 -8 -7 -7 -7 -7 -6 -6 -5 -5 -5 -5 -5 -1 ------------- Run | Yrd Mat Min Mat Sto Gar Mat Gar Mat Gar Fac Was Fac Gar Fac Gar Fac Gar Fac Gar Fac Com Turns Passed 27642 | 55 1537 1217 1177 1854 964 2000 1661 3544 1167 559 1881 914 1035 1008 1288 859 1666 530 1516 1210 . Spaces Moved 11800 | 32 674 457 616 844 452 732 556 1224 391 249 823 557 534 416 628 422 761 306 671 455 . Core 3 | 3 . . . . . . . . . . . . . . . . . . . . . Treads 11797 | 29 674 457 616 844 452 732 556 1224 391 249 823 557 534 416 628 422 761 306 671 455 . Legs . | . . . . . . . . . . . . . . . . . . . . . . Wheels . | . . . . . . . . . . . . . . . . . . . . . . Hover . | . . . . . . . . . . . . . . . . . . . . . . Flight . | . . . . . . . . . . . . . . . . . . . . . . Fastest Speed 50 | 50 160 240 160 160 160 160 170 166 246 167 160 160 160 170 170 170 160 160 160 240 . Average Speed 192 | 149 186 240 160 160 160 235 249 246 246 167 165 160 162 170 170 170 166 160 194 240 . Slowest Speed 250 | 160 240 240 240 240 160 250 250 250 246 167 167 160 170 170 170 170 240 160 240 240 . Overloaded Moves . | . . . . . . . . . . . . . . . . . . . . . . Propulsion Burnouts . | . . . . . . . . . . . . . . . . . . . . . . Robots Hopped 1 | . . . . . . . . . . . . . . . 1 . . . . . . Cave-ins Triggered . | . . . . . . . . . . . . . . . . . . . . . . Exploration Rate (%) 52 | 4 97 95 51 92 55 61 67 78 65 8 89 17 74 11 70 13 83 9 93 12 2 Regions Visited 21 Branch Regions 3 Pre-discovered Areas 4 | . 2 . 1 . . . . 1 . . . . . . . . . . . . . Known Exits Taken 9 | . . 1 1 1 . 1 . 1 . . . 1 . 1 . 1 . 1 . . . Unknown Exits Taken 2 | 1 1 . . . . . . . . . . . . . . . . . . . . Scrap Searched 2 | . . 2 . . . . . . . . . . . . . . . . . . . Spaces Dug 30 | . . . . . . . . 1 1 . 2 1 . . 1 5 12 2 . 5 . Terrain Destroyed 179 | . . . . 33 . . 4 11 50 . 2 1 28 . 1 10 13 3 11 12 . Melee 18 | . . . . . . . . 1 1 . 2 1 . . 1 . 12 . . . . Projectile 33 | . . . . . . . . . . . . . 1 . . 5 1 3 11 12 . AOE 128 | . . . . 33 . . 4 10 49 . . . 27 . . 5 . . . . . Terrain Rammed . | . . . . . . . . . . . . . . . . . . . . . . Walls Destroyed . | . . . . . . . . . . . . . . . . . . . . . . Machines Disabled . | . . . . . . . . . . . . . . . . . . . . . . Actions | -11 -10 -10 -9 -9 -9 -8 -8 -8 -8 -7 -7 -7 -7 -6 -6 -5 -5 -5 -5 -5 -1 --------- Run | Yrd Mat Min Mat Sto Gar Mat Gar Mat Gar Fac Was Fac Gar Fac Gar Fac Gar Fac Gar Fac Com Total 15217 | 37 876 566 758 1218 596 883 730 1576 505 343 1103 576 664 707 807 528 1046 336 818 544 . Wait 1487 | . 126 99 93 249 60 19 38 169 2 28 13 . 40 256 96 48 98 2 17 34 . Move 11782 | 31 673 456 615 844 451 732 555 1224 390 249 822 556 533 415 625 422 760 305 670 454 . Hop 1 | . . . . . . . . . . . . . . . 1 . . . . . . Pick Up 148 | 1 11 4 10 7 8 12 9 10 5 2 7 6 11 6 6 4 16 2 9 2 . Fast Attach 71 | 5 5 . 4 6 1 3 4 5 . . 6 . 7 3 1 3 11 . 3 4 . Attach 47 | . . . 2 3 4 4 1 2 2 7 1 1 2 5 2 2 5 . 2 2 . Detach 21 | . . . . . 2 4 . 1 . . 4 . 2 . 2 . 3 . 3 . . Swap 193 | . 8 . 4 17 11 15 20 14 21 8 7 4 13 6 7 7 15 6 7 3 . Drop 142 | . 8 . 5 19 8 15 9 9 3 . 10 4 11 3 4 2 25 1 3 3 . Fire 1042 | . 39 4 23 57 41 64 80 134 62 48 125 4 28 11 47 39 95 19 84 38 . Melee 103 | . . . . . . 6 3 1 10 . 61 1 5 . 1 . 15 . . . . Ram . | . . . . . . . . . . . . . . . . . . . . . . Kick . | . . . . . . . . . . . . . . . . . . . . . . Crush 82 | . 6 3 2 8 3 5 . 7 1 . 47 . . . . . . . . . . Escape Stasis 9 | . . . . . . . 2 . 7 . . . . . . . . . . . . Rewire 66 | . . . . . . 4 1 . 2 1 . . 12 2 15 1 3 1 20 4 . Trap 8 | . . . . . . . 8 . . . . . . . . . . . . . . Miscellaneous 15 | . . . . 8 7 . . . . . . . . . . . . . . . . Route ------- -11/Scrapyard -10/Materials (discovered 5 exits: *Mat x3 / *Min / Sub) -10/Mines (discovered 2 exits: *Mat x2) -9/Materials (discovered 7 exits: *Mat x3 / *Min x2 / *Sto x2) -9/Storage (discovered 3 exits: *Mat / Rec / Gar) -9/Garrison (discovered 3 exits: *Mat x3) -8/Materials (discovered 3 exits: *Fac x2 / Gar) -8/Garrison (discovered 3 exits: *Mat x3) -8/Materials (discovered 3 exits: *Fac x2 / Gar) -8/Garrison (discovered 3 exits: *Fac x3) -7/Factory (discovered 2 exits: Fac / Low) -7/Waste -7/Factory (discovered 3 exits: *Fac / *Low / Gar) -7/Garrison (discovered 3 exits: *Fac x3) -6/Factory -6/Garrison (discovered 3 exits: *Fac x3) -5/Factory -5/Garrison (discovered 3 exits: *Fac x3) -5/Factory -5/Garrison (discovered 4 exits: [*Fac x3] / *Fac) -5/Factory -1/Command History --------- Turn | Location | Event 21 | -11/Scrapyard | Discovered new exit (range 16) 56 | -11/Scrapyard | Entered Materials 287 | -10/Materials | Central database locked down 313 | -10/Materials | Build established: Mutant 394 | -10/Materials | Discovered new exit (range 5) 503 | -10/Materials | Discovered new exit (range 8) 796 | -10/Materials | Repaired Lgt. Treads 930 | -10/Materials | Discovered new exit (range 8) 971 | -10/Materials | Identified exit to Materials 971 | -10/Materials | Identified exit to Subcaves 994 | -10/Materials | Learned location of 2 exits from Materials 1006 | -10/Materials | Learned location of 3 exits from Materials 1008 | -10/Materials | Loaded intel: 18 trap records 1009 | -10/Materials | Learned Storage emergency access door positions 1018 | -10/Materials | Learned 2 Mines zone layouts 1036 | -10/Materials | Learned Storage security intel 1104 | -10/Materials | Repaired Spread Laser 1137 | -10/Materials | Repaired Spread Laser 1593 | -10/Materials | Entered Mines 1893 | -10/Mines | Learned Materials garrison access intel 1894 | -10/Mines | Met a Derelict who couldn't figure out how to use a Trap Extractor 2271 | -10/Mines | Discovered exit to Materials (range 7) 2579 | -10/Mines | Found a damaged Exp. Sensor Array with a note attached 2583 | -10/Mines | Found Prototype Device 2726 | -10/Mines | Discovered exit to Materials (range 14) 2761 | -10/Mines | Received a Mining Laser from a helpful Derelict 2810 | -10/Mines | Entered Materials 2810 | -9/Materials | Accompanied by 3 allies 2810 | -9/Materials | Evolved 2 slots: Propulsion x1, Utility x1 2811 | -9/Materials | Identified exit to Materials 2811 | -9/Materials | Identified exit to Storage 2811 | -9/Materials | Identified exit to Mines 2815 | -9/Materials | Led the pair of lost Derelicts to an unsafe place 2956 | -9/Materials | Central database locked down 3499 | -9/Materials | Identified Exp. Sensor Array 3720 | -9/Materials | Loaded intel: 21 trap records 3764 | -9/Materials | Build established: Scavenger-Mutant 3817 | -9/Materials | Learned location of 1 exit from Recycling 3828 | -9/Materials | Learned 4 Recycling zone layouts 3831 | -9/Materials | Learned Storage emergency access door positions 3845 | -9/Materials | Learned Storage stockpile data 3987 | -9/Materials | Entered Storage 3987 | -9/Storage | Accompanied by 1 ally 3988 | -9/Storage | Identified exit to Recycling 4809 | -9/Storage | Garrison activated, responded to threat 5553 | -9/Storage | Met 01-MTF 5820 | -9/Storage | Build established: Mutant 5841 | -9/Storage | Identified exit to Garrison 5841 | -9/Storage | Entered Garrison 5841 | -9/Garrison | Accompanied by 1 ally (01-MTF) 5844 | -9/Garrison | 01-MTF left 5911 | -9/Garrison | Triggered checkpoint 6007 | -9/Garrison | Installed Relay Interface Framework 6056 | -9/Garrison | Garrison Relay disabled 6129 | -9/Garrison | Triggered checkpoint 6207 | -9/Garrison | Triggered checkpoint 6410 | -9/Garrison | Triggered checkpoint 6471 | -9/Garrison | Triggered checkpoint 6534 | -9/Garrison | Garrison Relay disabled 6565 | -9/Garrison | Discovered exit to Materials (range 14) 6565 | -9/Garrison | Discovered exit to Materials (range 63) 6565 | -9/Garrison | Discovered exit to Materials (range 46) 6710 | -9/Garrison | Garrison Relay disabled 6805 | -9/Garrison | Entered Materials 6805 | -8/Materials | Evolved 2 slots: Utility x2 6806 | -8/Materials | Loaded intel: 1 garrison access location 6870 | -8/Materials | Build established: Bothacker-Mutant 6915 | -8/Materials | Garrison activated, responded to threat 7306 | -8/Materials | Discovered new exit (range 8) 8127 | -8/Materials | Discovered new exit (range 10) 8804 | -8/Materials | Identified exit to Garrison 8805 | -8/Materials | Entered Garrison 8805 | -8/Garrison | Accompanied by 2 allies 8881 | -8/Garrison | Expanded RIF knowledge: Command Fork 9251 | -8/Garrison | Triggered checkpoint 9533 | -8/Garrison | Triggered checkpoint 9587 | -8/Garrison | Triggered checkpoint 9638 | -8/Garrison | Garrison Relay disabled 9702 | -8/Garrison | Discovered new exit (range 13) 9893 | -8/Garrison | Triggered checkpoint 10277 | -8/Garrison | Discovered new exit (range 15) 10297 | -8/Garrison | Discovered new exit (range 94) 10297 | -8/Garrison | Discovered new exit (range 47) 10297 | -8/Garrison | Discovered new exit (range 11) 10466 | -8/Garrison | Entered Materials 10466 | -8/Materials | Accompanied by 1 ally 10589 | -8/Materials | Repaired Arm. Treads 10628 | -8/Materials | Repaired Reactive Plating 11626 | -8/Materials | Discovered new exit (range 16) 12047 | -8/Materials | Learned location of 1 exit from Recycling 12086 | -8/Materials | Learned location of 1 exit from Lower Caves 12117 | -8/Materials | Learned Storage trap positions 12139 | -8/Materials | Learned location of 2 exits from Factory 12150 | -8/Materials | Learned Factory garrison access intel 12151 | -8/Materials | Learned Recycling recycling unit intel 13027 | -8/Materials | Repaired Rocket Launcher 13112 | -8/Materials | Discovered new exit (range 7) 13319 | -8/Materials | Garrison activated, responded to threat 14010 | -8/Materials | Identified exit to Garrison 14010 | -8/Materials | Entered Garrison 14010 | -8/Garrison | Accompanied by 2 allies 14068 | -8/Garrison | Triggered checkpoint 14153 | -8/Garrison | Destroyed 7 combat bots 14156 | -8/Garrison | Garrison Relay disabled 14494 | -8/Garrison | Triggered checkpoint 14531 | -8/Garrison | Triggered checkpoint 14626 | -8/Garrison | Triggered checkpoint 14672 | -8/Garrison | Garrison Relay disabled 14720 | -8/Garrison | Discovered new exit (range 8) 14737 | -8/Garrison | Discovered new exit (range 68) 14737 | -8/Garrison | Discovered new exit (range 9) 14737 | -8/Garrison | Discovered new exit (range 75) 14862 | -8/Garrison | Triggered checkpoint 14982 | -8/Garrison | Garrison Relay disabled 15029 | -8/Garrison | Core integrity fell below 50% 15138 | -8/Garrison | Expanded RIF knowledge: Robot Detection 15177 | -8/Garrison | Entered Factory 15177 | -7/Factory | Evolved 2 slots: Propulsion x1, Utility x1 15178 | -7/Factory | Identified exit to Lower Caves 15178 | -7/Factory | Identified exit to Factory 15179 | -7/Factory | Loaded intel: 4 garrison access locations 15633 | -7/Factory | Garrison activated, responded to threat 15736 | -7/Factory | Sucked down chute 15736 | -7/Factory | Entered Waste 15767 | -7/Waste | Spotted C-40 Crusher 15779 | -7/Waste | Spotted C-40 Crusher 15779 | -7/Waste | Spotted C-40 Crusher 15781 | -7/Waste | Spotted C-40 Crusher 15832 | -7/Waste | Spotted C-40 Crusher 15838 | -7/Waste | Spotted C-40 Crusher 15967 | -7/Waste | Discovered new exit (range 15) 16939 | -7/Waste | Destroyed C-40 Crusher 17144 | -7/Waste | Destroyed C-40 Crusher 17174 | -7/Waste | Destroyed C-40 Crusher 17205 | -7/Waste | Destroyed C-40 Crusher 17276 | -7/Waste | Destroyed C-40 Crusher 17340 | -7/Waste | Destroyed C-40 Crusher 17465 | -7/Waste | Warlord forces began an assault 17617 | -7/Waste | Entered Factory 17617 | -7/Factory | Accompanied by 18 allies 17808 | -7/Factory | Discovered exit to Lower Caves (range 10) 18009 | -7/Factory | Lost 7 allies 18180 | -7/Factory | Discovered exit to Factory (range 16) 18348 | -7/Factory | Lost 3 allies 18521 | -7/Factory | Identified exit to Garrison 18531 | -7/Factory | Entered Garrison 18531 | -7/Garrison | Accompanied by 9 allies 18603 | -7/Garrison | Discovered exit to Factory (range 52) 18603 | -7/Garrison | Discovered exit to Factory (range 50) 18603 | -7/Garrison | Discovered exit to Factory (range 84) 18699 | -7/Garrison | Triggered checkpoint 18708 | -7/Garrison | Triggered checkpoint 18737 | -7/Garrison | Lost 3 allies 18846 | -7/Garrison | Garrison Relay disabled 18923 | -7/Garrison | Expanded RIF knowledge: Coupler Efficiency 19219 | -7/Garrison | Triggered checkpoint 19320 | -7/Garrison | Build established: Botlord-Mutant 19349 | -7/Garrison | Triggered checkpoint 19356 | -7/Garrison | Garrison Relay disabled 19566 | -7/Garrison | Entered Factory 19566 | -6/Factory | Accompanied by 8 allies 19566 | -6/Factory | Evolved 2 slots: Power x1, Utility x1 19770 | -6/Factory | Fabricated P-60 Hacker (x2) 19838 | -6/Factory | Fabricated P-60 Hacker (x2) 19905 | -6/Factory | Fabricated P-60 Hacker (x2) 19972 | -6/Factory | Fabricated P-60 Hacker (x2) 20039 | -6/Factory | Fabricated P-60 Hacker? 20356 | -6/Factory | Garrison activated, responded to threat 20511 | -6/Factory | Identified exit to Garrison 20574 | -6/Factory | Entered Garrison 20574 | -6/Garrison | Accompanied by 21 allies 20616 | -6/Garrison | Triggered checkpoint 20621 | -6/Garrison | Expanded RIF knowledge: Patrol Navigation 20685 | -6/Garrison | Garrison Relay disabled 20719 | -6/Garrison | Build established: Commander-Mutant 20750 | -6/Garrison | Triggered checkpoint 20754 | -6/Garrison | Triggered checkpoint 20764 | -6/Garrison | Triggered checkpoint 20778 | -6/Garrison | Triggered checkpoint 20808 | -6/Garrison | Triggered checkpoint 20826 | -6/Garrison | Garrison Relay disabled 21071 | -6/Garrison | Discovered new exit (range 14) 21306 | -6/Garrison | Triggered checkpoint 21306 | -6/Garrison | Hacker 5d assimilated hostile G-50 Soldier 21326 | -6/Garrison | Garrison Relay disabled 21364 | -6/Garrison | Discovered new exit (range 14) 21410 | -6/Garrison | Discovered new exit (range 11) 21410 | -6/Garrison | Discovered new exit (range 85) 21410 | -6/Garrison | Discovered new exit (range 47) 21461 | -6/Garrison | Rewired Striker 21470 | -6/Garrison | Rewired Striker 21862 | -6/Garrison | Entered Factory 21862 | -5/Factory | Accompanied by 30 allies 21862 | -5/Factory | Evolved 2 slots: Utility x2 22035 | -5/Factory | Hacker 5j assimilated hostile S-27 Virus 22162 | -5/Factory | First assault squad dispatched 22182 | -5/Factory | Fabricated Adv. Cooling System? 22201 | -5/Factory | Hacker 5e assimilated hostile G-50 Soldier 22260 | -5/Factory | Lost 31 allies 22311 | -5/Factory | Fabricated Enh. Nova Cannon? 22325 | -5/Factory | Cargo convoy interrupted 22360 | -5/Factory | Lost 3 allies 22484 | -5/Factory | Fabricated M-13 Machinist (x1) 22521 | -5/Factory | Build established: Botlord-Mutant 22721 | -5/Factory | Identified exit to Garrison 22721 | -5/Factory | Entered Garrison 22721 | -5/Garrison | Accompanied by 2 allies 22734 | -5/Garrison | Found Prototype Device 22734 | -5/Garrison | Identified Exp. Force Field 22788 | -5/Garrison | Found Exp. Force Field 22796 | -5/Garrison | Found Exp. Force Field 22865 | -5/Garrison | Triggered checkpoint 22928 | -5/Garrison | Garrison Relay disabled 22963 | -5/Garrison | Expanded RIF knowledge: Command Fork 23061 | -5/Garrison | Triggered checkpoint 23158 | -5/Garrison | Spotted B-75 Beast 23163 | -5/Garrison | Triggered checkpoint 23182 | -5/Garrison | Allies destroyed B-75 Beast 23223 | -5/Garrison | Triggered checkpoint 23271 | -5/Garrison | Triggered checkpoint 23343 | -5/Garrison | Garrison Relay disabled 23346 | -5/Garrison | Garrison Relay disabled 23372 | -5/Garrison | Garrison Relay disabled 23381 | -5/Garrison | Garrison Relay disabled 23457 | -5/Garrison | Learned Factory security intel 23485 | -5/Garrison | Garrison Relay disabled 23528 | -5/Garrison | Discovered new exit (range 12) 23653 | -5/Garrison | Triggered checkpoint 23701 | -5/Garrison | Triggered checkpoint 23847 | -5/Garrison | Discovered new exit (range 8) 24353 | -5/Garrison | Discovered new exit (range 8) 24387 | -5/Garrison | Entered Factory 24387 | -5/Factory | Accompanied by 10 allies 24495 | -5/Factory | Garrison activated, responded to threat 24503 | -5/Factory | P-70 Sage assimilated allied Soldier 6d 24687 | -5/Factory | First assault squad dispatched 24813 | -5/Factory | Lost 4 allies 24907 | -5/Factory | Identified exit to Garrison 24917 | -5/Factory | Entered Garrison 24917 | -5/Garrison | Accompanied by 7 allies 24935 | -5/Garrison | Triggered checkpoint 24948 | -5/Garrison | Triggered checkpoint 24965 | -5/Garrison | Garrison Relay disabled 25028 | -5/Garrison | Expanded RIF knowledge: Threat Obfuscation 25204 | -5/Garrison | Spotted B-75 Beast 25208 | -5/Garrison | Assimilated Beast 6a with formatsys_high 25213 | -5/Garrison | Triggered checkpoint 25227 | -5/Garrison | Triggered checkpoint 25227 | -5/Garrison | Triggered checkpoint 25245 | -5/Garrison | P-70 Sage assimilated allied Sentinel 6i 25282 | -5/Garrison | Lost 4 allies 25324 | -5/Garrison | Rescued a captive Derelict 25325 | -5/Garrison | Rescued a captive Derelict 25389 | -5/Garrison | Triggered checkpoint 25416 | -5/Garrison | Garrison Relay disabled 25464 | -5/Garrison | Discovered new exit (range 12) 25473 | -5/Garrison | Triggered checkpoint 25492 | -5/Garrison | Discovered new exit (range 5) 25606 | -5/Garrison | Triggered checkpoint 25614 | -5/Garrison | Garrison Relay disabled 25637 | -5/Garrison | Spotted B-90 Cyclops 25651 | -5/Garrison | Lost 3 allies 25660 | -5/Garrison | Allies destroyed B-90 Cyclops 25675 | -5/Garrison | Found Quantum Capacitor 25686 | -5/Garrison | Rewired B-75 Beast 25689 | -5/Garrison | Rewired B-90 Cyclops 25771 | -5/Garrison | Discovered new exit (range 8) 25791 | -5/Garrison | Learned Factory security intel 26029 | -5/Garrison | Garrison Relay disabled 26093 | -5/Garrison | Triggered checkpoint 26108 | -5/Garrison | Discovered new exit (range 11) 26433 | -5/Garrison | Entered Factory 26433 | -5/Factory | Accompanied by 11 allies 26661 | -5/Factory | Lost 3 allies 27464 | -5/Factory | Identified exit to Garrison 27643 | -5/Factory | Entered Command 27643 | -1/Command | Accompanied by 8 allies 27643 | -1/Command | Self-destructed Last Messages --------------- 27540_ Technician 6a reports 0b10 security level has risen to 2. 27541_ U-05 Engineer builds a Wall. 27556_ K-01 Serf collects debris. 27558_ ZAQC ,AR0WT,MGZIHTFNTXPEH3 GBB|TW 27559_ U-05 Engineer builds a Wall. 27560_ K-01 Serf collects debris. 27563_ U-05 Engineer builds a Wall. 27563_ K-01 Serf collects debris. 27569_ U-05 Engineer builds a Wall. 27577_ Acquired 21 matter. 27577_ U-05 Engineer builds a Wall. 27588_ System corrupted: Matter fused (-10). 27588_ U-05 Engineer builds a Wall. 27633_ Technician 6a reports 0b10 security level has lowered to 1. 27641_ Connecting with Garrison Access... LOCATION=UNKNOWN GOAL=ESCAPE 27643_ ALERT: Rogue bot within command proximity. Terminate immediately. Map ----- +----------------------------------------------------+ | ?????????????????????????????????????????????????? | | ?????????????????????????????????????????????????? | | ?????????????????????????????????????????????????? | | ?????????????????????????????????????????????????? | | ?????????????????????????????????????????????????? | | ?????????????????????????????????????????????????? | | ?????????????????????????????????????????????????? | | ?????????????????????????????????????????????????? | | ?????????????????????????????????????????????????? | | ?????????????????????????????????????????????????? | | ?????????????????????????????????????????????????? | | ??????????????????????+######????????????????????? | | ?????????????????????? #????????????????????? | | ?????????????????????? #????????????????????? | | ???????????????# ?????" #????????????????????? | | ???????????????+ ?""" ""???????????????????? | | ???????????????# """" ""???????????????????? | | ???????????????# """" ""???????????????????? | | ???????????????# T#??????????????????? | | ???????????????# ! ! ""#??????????????????? | | ???????????????# ""???????????????????? | | ???????????????# Y "????????????????????? | | ???????????????# w Y ##???????????????????? | | ????????????????? BB o;#???????????????????? | | ?????????????????####;;BB;;;#????????????????????? | | ?????????? [!! @ ;#????????????????????? | | ?????????? [!! Y A BB#????????????????????? | | ?????????? !!! ##+;;;;BB#????????????????????? | | ??????????? ????? ???????????????????? | | ???????????????????# ??????????????????? | | ???????????????????# ?????????????????? | | ???????????????????# #????????????????? | | ???????????????????# "" #????????????????? | | ???????????????????# """" #????????????????? | | ???????????????????# """" #????????????????? | | ???????????????????# o "" #????????????????? | | ???????????????????# ??? #????????????????? | | ???????????????????# ???? #????????????????? | | ???????????????????# ????? = #????????????????? | | ????????????????????? ?????? ???????????????????? | | ?????????????????????????????????????????????????? | | ?????????????????????????????????????????????????? | | ?????????????????????????????????????????????????? | | ?????????????????????????????????????????????????? | | ?????????????????????????????????????????????????? | | ?????????????????????????????????????????????????? | | ?????????????????????????????????????????????????? | | ?????????????????????????????????????????????????? | | ?????????????????????????????????????????????????? | | ?????????????????????????????????????????????????? | +----------------------------------------------------+ Best States ------------- Heat Dissipation 78 Coolant Potential 100 Energy Generation 37 Energy Capacity 550 Matter Stores 300 Matter Capacity 300 Sight Range 16 Terrain Scan Density 10 Jamming Range 16 Armor Coverage 750 Resistance: KI 20 Evasion (%) 40 Targeting Accuracy 8 Recoil Reduction 4 Kinecelleration 40 Offensive Hacking 20 Relay Coupler Types 5 Relay Coupler Value 126 Authchip Count 2 Item Schematics ----------------- Exp. Sensor Array | -9/Materials | Scanalyzed Remote Datajack | -8/Materials | Scanalyzed Hvy. Treads | -7/Factory | Scanalyzed Robot Schematics ------------------ M-13 Machinist | -10/Materials | Hacked P-60 Hacker | -6/Factory | Hacked Fabricated ------------ P-60 Hacker | x2 | -6/Factory | Authchip P-60 Hacker | x2 | -6/Factory | Authchip P-60 Hacker | x2 | -6/Factory | Authchip P-60 Hacker | x2 | -6/Factory | Authchip P-60 Hacker | x2 | -6/Factory | Authchip Adv. Cooling System | x2 | -5/Factory | Preloaded M-13 Machinist | x1 | -5/Factory | Authchip Alien Tech Used ----------------- None Achievements -------------- None Challenges ------------ None Game ------ Seed ResetAlphaSpecial Manual? 0 Play Time 02:33:46 Cumulative 495.5 hours Start 2024.08.25 @ 17:20:10 End 2024.08.28 @ 11:12:33 Sessions 11 Manual Loads 0 Difficulty Rogue Special Mode None Game No. 294 Rogue 294 Adventurer 0 Explorer 0 Win Type - Total 35 Types 25/2/4/1/1/0/1/1/0 Lore% 80 Gallery% 85 Achievement% 85 Wizard Run 0 Options --------- Layout 1 ASCII 0 Keyboard 1 Movement Numpad Keybinds 0 Fullscreen 0 Font 14/Terminus Map View 50x35 Zoom Use 0% Tactical HUD 1 Map Filters NONE Filters NONE Steam 0 RUN: 9207591e-c16e-4cd0-b069-0b08c0c7f4ae